Cogmind - Beta 9.2 @@@ ROGUE MODE // 2019.11.20 @ 01:10:02 Player: Finestep Result: Destroyed by Y-45 Defender with Heavy Assault Rifle Performance ------------- Evolutions (0) 0 Regions Visited (2) 400 Robots Destroyed (32) 160 Value Destroyed (679) 679 Prototype IDs (2) 40 Alien Tech Used (0) 0 Bonus (0) 0 TOTAL SCORE: 1279 Bonus ------- None Cogmind --------- Core Integrity 0/250 Matter 271/300 Energy 250/250 System Corruption 0% Temperature Cool (9) Movement Walking (150) Ox1 Location -10/Mines Parts ------- > --- POWER (1) -------- Ion Engine > --- PROPULSION (2) --- Aluminum Leg Aluminum Leg > --- UTILITY (2) ------ Large Storage Unit Large Storage Unit > --- WEAPON (2) ------- Light Assault Rifle Light Assault Rifle > --- INVENTORY (16) --- Light Nuclear Core Light Nuclear Core Compact Wheel Medium Storage Unit Medium Storage Unit High-capacity Matter Pod (22) Transport Network Coupler Light Armor Plating Hacking Suite Grenade Launcher Grenade Launcher Mining Claw Blade Trap Blade Trap Blade Trap Peak State ------------ > --- POWER ------------ Ion Engine > --- PROPULSION ------- Light Treads Wheel > --- UTILITY ---------- Large Storage Unit Large Storage Unit > --- WEAPON ----------- Light Assault Rifle Light Assault Rifle > --- INVENTORY -------- Light Nuclear Core Aluminum Leg Aluminum Leg Compact Wheel Medium Storage Unit Medium Storage Unit High-capacity Matter Pod Transport Network Coupler Light Armor Plating Hacking Suite Grenade Launcher Grenade Launcher Mining Claw Blade Trap Blade Trap Blade Trap [Rating: 9] Favorites ----------- Power Ion Engine Engine Ion Engine Propulsion Wheel Treads Light Treads Leg Aluminum Leg Wheel Wheel Utility Medium Storage Unit Storage Medium Storage Unit Weapon Light Assault Rifle Energy Gun EM Pulse Gun Ballistic Gun Light Assault Rifle Slashing Weapon Mining Claw Build | -11 -10 -10 ------- Run | Scr Mat Min Slots Evolved . | . . . Power . | . . . Propulsion . | . . . Utility . | . . . Weapon . | . . . Parts Attached 27 | 8 13 6 Power 3 | 1 1 1 Engine 3 | 1 1 1 Core . | . . . Reactor . | . . . Propulsion 8 | 2 2 4 Treads 2 | . 2 . Leg 2 | . . 2 Wheel 4 | 2 . 2 Hover . | . . . Flight . | . . . Utility 7 | 2 5 . Device . | . . . Storage 7 | 2 5 . Processor . | . . . Hackware . | . . . Protection . | . . . Artifact . | . . . Weapon 9 | 3 5 1 Energy Gun 4 | 3 1 . Energy Cannon . | . . . Ballistic Gun 4 | . 3 1 Ballistic Cannon . | . . . Launcher . | . . . Special Weapon . | . . . Impact Weapon . | . . . Slashing Weapon 1 | . 1 . Piercing Weapon . | . . . Special Melee Weapon . | . . . Unidentified Prototypes . | . . . Parts Lost 8 | . 4 4 Power 2 | . 1 1 Propulsion 3 | . 1 2 Utility . | . . . Weapon 3 | . 2 1 Highest Loss Streak 3 | . 1 3 Average Slot Usage (%) 99 | . 99 98 Engine 13 | . 13 13 Treads 12 | . 13 10 Leg 1 | . . 5 Wheel 13 | . 14 10 Storage 28 | . 28 28 Energy Gun 14 | . 21 . Ballistic Gun 13 | . 6 28 Naked Turns . | . . . Heaviest Build 40 | 17 40 39 Greatest Support 26 | 26 26 20 Greatest Overweight (x) 3 | . 3 3 Average Overweight (x) 1 | . 1 2 Largest Inventory Capacity 16 | 8 16 16 Average Capacity 12 | 6 11 16 Most Carried 16 | 4 12 16 Average Carried 10 | 3 9 14 Final Capacity 16 | 8 16 16 Final Carried 15 | 4 12 15 Class Distribution -------------------- 100% | Mutant Dominant Class ---------------- Mutant | -10/Materials Mutant | -10/Mines Resources | -11 -10 -10 ----------- Run | Scr Mat Min Matter Collected 536 | 280 80 176 Remotely . | . . . Salvage Created 1007 | 210 596 201 Parts 79 | 18 46 15 Haulers Intercepted 1 | . 1 . Recyclers Shooed 2 | . 1 1 Parts Field Recycled . | . . . Retrieved Matter . | . . . Parts Self-Destructed . | . . . Prevented . | . . . Kills | -11 -10 -10 ------- Run | Scr Mat Min Combat Hostiles Destroyed 20 | . 16 4 Guns 19 | . 15 4 AOE 1 | . 1 . Classes Destroyed 9 | 2 5 2 Worker 1 | . . 1 Builder 1 | . . 1 Tunneler 5 | 5 . . Hauler 1 | . 1 . Recycler 1 | 1 . . Operator 1 | . 1 . Watcher 2 | . 2 . Swarmer 6 | . 6 . Grunt 14 | . 10 4 Best Kill Streak 7 | 6 7 2 Combat Bots Only 6 | . 6 2 Max Kills in Single Turn 2 | 1 2 1 Gunslinging 1 | . 1 . Exploded 1 | . 1 . Melee . | . . . Uniques/NPCs Destroyed . | . . . Combat | -11 -10 -10 -------- Run | Scr Mat Min Damage Taken 1162 | . 595 567 Core 260 | . 105 155 Absorbed by Shields . | . . . Core Remaining (%) 100 | 100 . . Volleys Fired 113 | 13 61 39 Largest 2 | 2 2 2 Hottest 90 | 90 90 40 Shots Fired 222 | 26 119 77 Gun 222 | 26 119 77 Cannon . | . . . Launcher . | . . . Special . | . . . Kinetic 107 | . 30 77 Thermal 32 | 13 19 . Explosive . | . . . Electromagnetic 83 | 13 70 . Robot Hit Streak 13 | 10 10 13 Robot Miss Streak 3 | 2 3 2 Penetration Max . | . . . Secondary Targets 3 | . 2 1 Max Gunslinging Chain 1 | . 1 1 Shots Hit Robots 135 | 16 67 52 Core Hits 59 | 7 30 22 Critical Hits 1 | . 1 . Critical Kills 1 | . 1 . Critical Parts Destroyed . | . . . Melee Attacks 2 | . 2 . Impact . | . . . Slashing 2 | . 2 . Piercing . | . . . Sneak Attacks . | . . . Combat Hostiles . | . . . Follow-up Attacks . | . . . Damage Inflicted 1515 | 202 949 364 Guns 1357 | 202 791 364 Cannons . | . . . Explosions 158 | . 158 . Melee . | . . . Ramming . | . . . Kinetic 505 | . 141 364 Thermal 292 | 124 168 . Explosive 115 | . 115 . Electromagnetic 603 | 78 525 . Impact . | . . . Slashing . | . . . Piercing . | . . . Highest Corruption . | . . . Average Corruption . | . . . Corruption Purged . | . . . Overload Shots . | . . . Overflow Damage 2 | . 2 . Projectiles . | . . . Explosions 2 | . 2 . Melee . | . . . Knockbacks . | . . . Impact . | . . . Kinetic . | . . . Secondary . | . . . Self-Inflicted Damage 139 | . 139 . Shots 2 | . 2 . Rammed . | . . . Targets Rammed . | . . . Kicked . | . . . Crushed . | . . . Highest Temperature 312 | 230 312 43 Average Temperature 84 | 114 89 17 Received Heat Transfer 492 | . 216 276 Effects 1 | . 1 . Interference 1 | . 1 . Siege Activations . | . . . Robots Corrupted . | . . . Combat Hostiles . | . . . Parts Fried 1 | . 1 . Impact Corruptions . | . . . Robots Melted . | . . . Combat Hostiles . | . . . Parts Melted . | . . . Heat Transferred 740 | 370 370 . Parts Sabotaged . | . . . Parts Stolen . | . . . Parts Stripped . | . . . Power Chain Reactions 1 | . 1 . Missiles Intercepted . | . . . Alert | -11 -10 -10 ------- Run | Scr Mat Min Peak Influence 296 | 30 296 127 Average Influence 118 | 10 153 71 Maximum Alert Level 1 | . 1 . Low Security (%) 77 | 100 64 100 Level 1 22 | . 35 . Level 2 . | . . . Level 3 . | . . . Level 4 . | . . . Level 5 . | . . . High Security . | . . . Max Security . | . . . Squads Dispatched 5 | . 5 . Investigation 3 | . 3 . Extermination . | . . . Reinforcement 2 | . 2 . Assault . | . . . Garrison . | . . . Intercept . | . . . Construction Impeded . | . . . Haulers Reinforced . | . . . Stealth | -11 -10 -10 --------- Run | Scr Mat Min Distress Signals 3 | . 3 . Communications Jammed . | . . . Distress Signals . | . . . Times Spotted 31 | . 25 6 Peak Tracking Total 3 | . 3 2 Tactical Retreats 2 | . 2 . Traps | -11 -10 -10 ------- Run | Scr Mat Min Traps Triggered 1 | . 1 . Indirectly . | . . . Trap Hack Attempts . | . . . Triggered . | . . . Disarmed . | . . . Reprogrammed . | . . . Reused . | . . . Traps Extracted . | . . . Installed . | . . . Triggered . | . . . Machines | -11 -10 -10 ---------- Run | Scr Mat Min Machines Disabled 2 | . 2 . Max in Single Turn 1 | . 1 . Machines Sabotaged . | . . . Garrisons Compromised . | . . . Overloaded Fab Kills . | . . . Fab Network Shutdowns . | . . . Hacking | -11 -10 -10 --------- Run | Scr Mat Min Machines Accessed 8 | . 8 . Terminals 7 | . 7 . Fabricators . | . . . Repair Stations . | . . . Recycling Units 1 | . 1 . Scanalyzers . | . . . Garrison Access . | . . . Total Hacks 21 | . 21 . Successful 12 | . 12 . Failed 8 | . 8 . Catastrophic 2 | . 2 . Database Lockouts 1 | . 1 . Manual 12 | . 12 . Terminals 18 | . 18 . Fabricators . | . . . Repair Stations . | . . . Recycling Units 3 | . 3 . Scanalyzers . | . . . Garrison Access . | . . . Terminal Hacks 7 | . 7 . Robot Schematic 1 | . 1 . Prototype ID Bank 1 | . 1 . Terminal Index 1 | . 1 . Unreport Threat 1 | . 1 . Transport Status 1 | . 1 . Zone Layout 2 | . 2 . Fabricator Hacks . | . . . Repair Station Hacks . | . . . Recycling Unit Hacks 1 | . 1 . Retrieve Components 1 | . 1 . Scanalyzer . | . . . Garrison Access Hacks . | . . . Unauthorized Hacks 10 | . 10 . Terminals 3 | . 3 . Track 1 | . 1 . Assimilate 1 | . 1 . Botnet 1 | . 1 . Fabricators . | . . . Repair Stations . | . . . Recycling Units 1 | . 1 . Tunnel 1 | . 1 . Scanalyzers . | . . . Garrison Access . | . . . Data Cores Recovered . | . . . Used . | . . . Hacking Detections 8 | . 8 . Full Trace Events . | . . . Feedback Events . | . . . Feedback Blocked . | . . . Robot Schematics Acquired 1 | . 1 . Robots Built . | . . . Matter . | . . . Time . | . . . Total Robot Build Rating . | . . . Part Schematics Acquired . | . . . Parts Built . | . . . Matter . | . . . Time . | . . . Total Part Build Rating . | . . . Parts Repaired . | . . . Time . | . . . Parts Recycled . | . . . Recycled Matter . | . . . Retrieved Matter . | . . . Retrieved Components 3 | . 3 . Parts Scanalyzed . | . . . Part Schematics Acquired . | . . . Parts Damaged . | . . . Bothacking | -11 -10 -10 ------------ Run | Scr Mat Min Used RIF Installer . | . . . Robots Hacked . | . . . Non-combat . | . . . Combat . | . . . Robot Hacks Applied . | . . . Relay Couplers Released . | . . . Robots Rewired . | . . . Allies Hacked . | . . . Hacks Repelled . | . . . Allies | -11 -10 -10 -------- Run | Scr Mat Min Total Allies . | . . . Largest Group . | . . . Highest-Rated Group . | . . . Highest-Rated Ally . | . . . Total Orders . | . . . Ally Attacks . | . . . Total Damage . | . . . Kills . | . . . Allies Corrupted . | . . . Allies Melted . | . . . Intel | -11 -10 -10 ------- Run | Scr Mat Min Robot Analysis Total . | . . . Derelict Logs Recovered . | . . . Drone Launches . | . . . Drone Recoveries . | . . . Exploration | -11 -10 -10 ------------- Run | Scr Mat Min Turns Passed 1403 | 110 880 413 Spaces Moved 971 | 65 661 245 Core 7 | 7 . . Treads . | . . . Legs 44 | . . 44 Wheels 920 | 58 661 201 Hover . | . . . Flight . | . . . Fastest Speed 50 | 50 90 110 Average Speed 103 | 85 99 118 Slowest Speed 150 | 90 110 150 Overloaded Moves . | . . . Propulsion Burnouts . | . . . Robots Hopped . | . . . Cave-ins Triggered . | . . . Exploration Rate (%) 45 | 4 95 38 Regions Visited 2 Branch Regions 1 Pre-discovered Areas 1 | . 1 . Known Exits Taken . | . . . Unknown Exits Taken 2 | 1 1 . Scrap Searched . | . . . Spaces Dug 2 | . 2 . Terrain Destroyed 10 | . 10 . Melee 2 | . 2 . Projectile . | . . . AOE 8 | . 8 . Actions | -11 -10 -10 --------- Run | Scr Mat Min Total 1161 | 89 764 308 Wait 20 | . 10 10 Move 969 | 64 660 245 Hop . | . . . Pick Up 23 | 4 12 7 Fast Attach 8 | 7 1 . Attach 9 | . 4 5 Detach . | . . . Swap 10 | 1 8 1 Drop 7 | . 6 1 Fire 113 | 13 61 39 Melee 2 | . 2 . Ram . | . . . Kick . | . . . Crush . | . . . Escape Stasis . | . . . Rewire . | . . . Trap . | . . . Miscellaneous . | . . . Route ------- -11/Scrapyard -10/Materials (discovered 4 exits: [*Mat x3] / [*Min]) -10/Mines History --------- Turn | Location | Event 2 | -11/Scrapyard | Met Revision 17 35 | -11/Scrapyard | Discovered new exit (range 15) 111 | -11/Scrapyard | Entered Materials 260 | -10/Materials | Discovered new exit (range 13) 313 | -10/Materials | Build established: Mutant 379 | -10/Materials | Discovered new exit (range 4) 581 | -10/Materials | Discovered new exit (range 10) 793 | -10/Materials | Central database locked down 889 | -10/Materials | Discovered new exit (range 10) 991 | -10/Materials | Entered Mines 1002 | -10/Mines | Core integrity fell below 50% 1057 | -10/Mines | Lost 3 parts (1p1n1w) 1106 | -10/Mines | Found a hidden stash of uninstalled traps 1137 | -10/Mines | Met a Derelict bent on vengeance 1297 | -10/Mines | Core integrity fell below 20% 1404 | -10/Mines | Destroyed by Y-45 Defender with Heavy Assault Rifle Last Messages --------------- 01037_ Acquired 31 matter. 01040_ Acquired Lgt. Nuclear Core. 01041_ Acquired 43 matter. 01051_ Acquired Aluminum Leg. 01073_ K-01 Serf destroyed. 01076_ Acquired 20 matter. 01106_ A stash of uninstalled traps is hidden here! 01113_ Acquired Blade Trap. 01131_ Extracted 17 matter. 01287_ G-34 Mercenary destroyed. 01290_ Acquired 49 matter. 01298_ Seismic Survey Station disabled. 01302_ Lgt. Treads destroyed. 01308_ R-06 Scavenger collects Aluminum Leg. 01311_ G-47 Trooper destroyed. 01322_ Dropped Wheel. 01323_ Acquired Lgt. Nuclear Core. 01345_ U-05 Engineer destroyed. 01352_ Acquired 16 matter. 01355_ R-06 Scavenger collects Structural Scanner. Map ----- +----------------------------------------------------+ | ??????????????????????????????????????????? | | ??????????????????????????????????????????? | | ??????????????????????????????????????????? | | ??????????????????????????????????????????? | | ??????????????????????????????????????????? | | ??????????????????????????????????????????? | | ??????????????????????????????????????????? | | ??????????????????????????????????????????? | | ??????????????????????????????????????????? | | ??????????????????????????????????????????? | | ??????????????????????????????????????????? | | ??????????????????????????????????????????? | | ??????????????????????????????????????????? | | ??????????????????????????????????????????? | | ??????????????????????????????????????????? | | ??????????????????????????????????????????? | | ??????????????????????????????????????????? | | ??????????????????????????????????????????? | | ??????????????????????????????????????????? | | ??????????????????????????????????????????? | | ??????????????????????????????????????????? | | ??????????????????????????????????????????? | | ??????????????????????????????????????????? | | ??????????????????????????????????????????? | | ??????????????????# ############??????????? | | ??????????????????# @ Y #?? #??????? | | ??????????????????############ #?? #??????? | | ?????????????????????????????# #? #??????? | | ????????????????????????????## #? ###????? | | ####???????????????????????## ## ##???? | | # ##????????????????????### #???? | | #???????????????##/??# #???? | | #???????????????#"]! # # #???? | | ######??????????# / ## #???? | | ##?????????# / ## ##???? | | # ###???????#"|! # # ####????? | | # """ ##??????##!!## ##???????? | | """ ##??????###?# #????????? | | "" = #?????????## ##????????? | | [ = #?????????# ##?????????? | | ### #?????????# ##??????????? | | ##?## ##?????????# #???????????? | | ####???# ##?????????# ##???????????? | | #??????## #?????????# ###????????????? | | #???????## ##????????# #??????????????? | | #????????# ########## #?###??????????? | | #????????# ! |! ### ###????????? | | #????????## ########### ## ####?????? | | ###?????????###?????????# ## ##????? | | ????????????????????????# ## #????? | +----------------------------------------------------+ Best States ------------- Heat Dissipation 25 Energy Generation 10 Energy Capacity 250 Matter Stores 300 Matter Capacity 300 Sight Range 16 Terrain Scan Density 10 Evasion (%) 44 Recoil Reduction 1 Item Schematics ----------------- None Robot Schematics ------------------ O-16 Technician | -10/Materials | Hacked Fabricated ------------ Nothing Alien Tech Used ----------------- None Achievements -------------- None Challenges ------------ None Game ------ Seed ReinforcedGrenadeBooster Manual? 0 Play Time 00:11:13 Cumulative 296.3 hours Start 2019.11.20 @ 01:00:31 End 2019.11.20 @ 01:10:02 Sessions 1 Manual Loads 0 Difficulty Rogue Special Mode None Game No. 224 Rogue 224 Adventurer 0 Explorer 0 Win Type - Total 3 Types 3/0/0/0/0/0/0 Lore% 74 Gallery% 80 Achievement% 59 Wizard Run 0 Options --------- ASCII 0 Keyboard 0 Movement Mouse Keybinds 1 Fullscreen 2 Font 24/Smallcaps Map View 76x50 Tactical HUD 1 Map Filters NONE Filters NONE Steam 1 RUN: 2dab17ba-a6f4-4e7c-9f4a-6fc7cc3bd485